bitfinex-derivatives/quotes_SOLF0:USTF0_20260204
["timestamp","ask_amount","ask_price","bid_price","bid_amount"]
[1770171411517,64.24648789,98.959,98.877,44.64513516]
[1770171411717,64.24648789,98.959,98.879,44.64513516]
[1770171412115,9.1083,98.954,98.879,53.76033516]
[1770171412320,64.24648789,98.953,98.879,44.64513516]
[1770171412916,64.24648789,98.951,98.879,44.64513516]
[1770171414924,64.24648789,98.945,98.879,44.64513516]
[1770171415825,62.97761279,98.942,98.879,44.64513516]
[1770171418424,62.97761279,98.94,98.879,44.64513516]
[1770171420726,62.97761279,98.94,98.881,9.115]
[1770171420923,62.97761279,98.959,98.882,41.37588448]
[1770171421529,62.97761279,98.959,98.851,141.8325]
[1770171421530,62.97761279,98.939,98.851,41.86173436]
[1770171421721,141.7428,98.914,98.833,41.86173436]
[1770171421926,62.97761279,98.899,98.816,41.37507996]
[1770171422123,62.97761279,98.899,98.822,41.37507996]
[1770171422323,62.97761279,98.899,98.829,41.37507996]
[1770171422624,62.97761279,98.888,98.829,41.37507996]
[1770171423932,62.97761279,98.878,98.807,43.51477956]
[1770171424529,62.97761279,98.878,98.809,43.51477956]
[1770171425224,62.97761279,98.878,98.811,43.98845855]
[1770171425624,62.97761279,98.845,98.789,43.98845855]
[1770171426332,62.97761279,98.845,98.79,446.99038367]
[1770171426630,62.97761279,98.845,98.791,43.51038367]
[1770171429127,62.97761279,98.845,98.774,42.26816309]
[1770171429626,72.09601279,98.845,98.774,42.26816309]
[1770171429932,62.97761279,98.845,98.776,40.04274029]
[1770171430132,62.97761279,98.845,98.778,40.04274029]
[1770171431431,62.97761279,98.845,98.772,141.9457]
[1770171431432,62.97761279,98.845,98.78,39.07713533]
[1770171431937,72.09371279,98.869,98.791,47.76122247]
[1770171434136,62.97761279,98.858,98.791,38.63802247]
[1770171435634,9.1173,98.857,98.791,38.63802247]
[1770171435835,8.17902605,98.87,98.731,142.0036]
[1770171435836,62.97761279,98.856,98.772,37.43806911]
[1770171436035,62.97761279,98.856,98.774,37.01834701]
[1770171436330,62.97761279,98.856,98.779,37.01834701]
[1770171436530,62.97761279,98.869,98.78,403.7]
[1770171436727,62.97761279,98.859,98.781,37.01834701]
[1770171436934,62.97761279,98.831,98.765,36.38074031]
[1770171437633,62.97761279,98.831,98.77,36.38074031]
[1770171437840,72.09561279,98.849,98.772,35.75143167]
[1770171438134,62.97761279,98.86,98.772,35.75143167]
[1770171438534,62.97761279,98.86,98.793,35.75143167]
[1770171438738,62.97761279,98.86,98.795,35.75143167]
[1770171439837,9.1159,98.872,98.795,35.75143167]
[1770171440037,72.09351279,98.872,98.795,35.75143167]
[1770171440841,72.09351279,98.872,98.799,34.89754369]
[1770171441843,62.97761279,98.872,98.803,34.29032366]
[1770171442541,62.97761279,98.872,98.806,33.6902324]
[1770171442841,54.97099966,98.896,98.813,33.6902324]
[1770171443044,54.97099966,98.896,98.818,33.22260498]
[1770171443245,54.97099966,98.896,98.837,33.22260498]
[1770171444046,54.97099966,98.896,98.838,403.74]
[1770171444446,54.97099966,98.916,98.845,32.63619672]
[1770171444644,8.18976638,98.91,98.838,403.74]
[1770171444947,54.97099966,98.909,98.838,403.74]
[1770171445140,8.18976638,98.91,98.838,403.74]
[1770171445141,54.97099966,98.896,98.838,403.74]
[1770171445747,54.97099966,98.893,98.838,403.74]
[1770171445948,8.18976638,98.89,98.826,403.72]
[1770171446242,54.97099966,98.869,98.79,31.02563399]
[1770171446442,54.97099966,98.849,98.78,403.7]
[1770171446643,54.97099966,98.849,98.775,403.7]
[1770171446842,54.97099966,98.843,98.776,30.49995357]
[1770171447047,54.97099966,98.843,98.778,30.49995357]
[1770171448842,54.97099966,98.843,98.78,29.94146547]
[1770171449046,54.97099966,98.843,98.781,403.72]
[1770171450347,54.97099966,98.843,98.782,28.30868822]
[1770171452955,54.97099966,98.839,98.766,26.6028501]
[1770171453261,54.97099966,98.829,98.765,403.76]
[1770171454349,54.97099966,98.811,98.765,403.76]
[1770171455347,54.97099966,98.811,98.757,403.8]
[1770171455553,8.18976638,98.83,98.76,9.1261]
[1770171455750,54.97099966,98.829,98.761,25.65850061]
[1770171456454,54.97099966,98.829,98.749,141.9778]
[1770171456455,54.97099966,98.829,98.763,25.15218475]
[1770171456656,54.97099966,98.829,98.766,9.1256]
[1770171456859,54.97099966,98.829,98.767,24.08459463]
[1770171457247,54.97099966,98.829,98.77,9.1252]
[1770171457452,54.97099966,98.829,98.771,310.6]
[1770171457752,54.97099966,98.829,98.771,334.19211446]
[1770171457956,54.97099966,98.829,98.773,23.59211446]
[1770171458551,54.97099966,98.845,98.773,23.59211446]
[1770171459660,54.97099966,98.845,98.775,22.61304615]
[1770171460359,54.97099966,98.845,98.789,31.25631735]
[1770171460958,54.97099966,98.845,98.79,21.42426306]
[1770171462255,54.97099966,98.868,98.791,403.84]
[1770171462462,54.97099966,98.885,98.799,20.9562513]
[1770171462760,64.08589966,98.883,98.817,20.9562513]
[1770171463156,54.97099966,98.883,98.817,20.9562513]
[1770171463357,54.97099966,98.883,98.819,20.6383971]
[1770171464456,54.97099966,98.883,98.82,29.3014596]
[1770171465463,54.97099966,98.883,98.82,20.1808596]
[1770171467165,54.97099966,98.883,98.821,19.97003185]
[1770171467362,54.97099966,98.903,98.821,19.97003185]
[1770171468862,64.08399966,98.903,98.839,19.52805577]
[1770171471366,54.97099966,98.903,98.839,19.52805577]
[1770171471560,54.97099966,98.903,98.841,17.57922256]
[1770171471756,51.47457418,98.939,98.848,141.8367]
[1770171471961,51.47457418,98.939,98.871,17.16348512]
[1770171472365,51.47457418,98.956,98.873,17.16348512]
[1770171473762,51.47457418,98.956,98.883,25.82178453]
[1770171473970,51.47457418,98.956,98.884,16.30075065]
[1770171474267,51.47457418,98.979,98.899,16.30075065]
[1770171475668,48.682726,98.977,98.901,15.24116004]
[1770171475968,48.682726,98.977,98.902,403.66]
[1770171476369,48.682726,98.965,98.902,403.66]
[1770171477272,48.682726,98.965,98.884,14.8516848]
[1770171477573,48.682726,98.965,98.897,14.7073551]
[1770171477777,48.682726,98.987,98.914,14.32592754]
[1770171478071,48.682726,98.987,98.91,149.93696638]
[1770171478072,48.682726,98.987,98.924,14.32592754]
[1770171478864,48.682726,98.985,98.924,14.32592754]
[1770171479265,48.682726,98.985,98.424,201.683606]
[1770171479266,48.682726,98.971,98.894,9.1138]
[1770171479469,48.682726,98.971,98.888,13.07568912]
[1770171479870,48.682726,98.948,98.888,13.07568912]
[1770171480370,48.682726,98.948,98.813,141.8867]
[1770171480371,48.682726,98.948,98.883,396.66]
[1770171480667,141.6805,98.958,98.878,396.66]
[1770171480668,48.682726,98.942,98.878,396.66]
[1770171480976,141.6805,98.958,98.848,11.76050912]
[1770171480977,48.682726,98.919,98.848,11.76050912]
[1770171481173,8.18976638,98.92,98.848,11.76050912]
[1770171481174,48.682726,98.914,98.848,11.76050912]
[1770171481371,48.682726,98.914,98.836,403.5]
[1770171481672,48.682726,98.914,98.837,11.76050912]
[1770171482063,48.682726,98.912,98.837,11.76050912]
[1770171482770,48.682726,98.912,98.836,403.5]
[1770171482970,9.1126,98.907,98.836,403.5]
[1770171483277,48.682726,98.906,98.836,403.5]
[1770171483477,48.682726,98.897,98.817,11.39982323]
[1770171483771,48.682726,98.897,98.78,8.18976638]
[1770171483772,48.682726,98.879,98.809,195.72]
[1770171485570,48.682726,98.879,98.756,141.9681]
[1770171485571,48.682726,98.864,98.776,10.48464468]
[1770171485775,48.682726,98.849,98.767,403.54]
[1770171486774,9.1183,98.846,98.767,403.54]
[1770171487078,9.1183,98.846,98.741,141.99]
[1770171487079,48.682726,98.826,98.738,9.76306682]
[1770171487273,48.682726,98.821,98.738,9.76306682]
[1770171487477,48.682726,98.789,98.715,9.76306682]
[1770171488375,48.682726,98.789,98.716,403.64]
[1770171489870,48.682726,98.789,98.717,8.4315547]
[1770171490276,56.87249238,98.81,98.719,8.4315547]
[1770171490473,56.87249238,98.81,98.721,8.4315547]
[1770171490679,56.87249238,98.81,98.723,8.4315547]
[1770171491086,48.682726,98.805,98.723,8.4315547]
[1770171491478,48.682726,98.805,98.725,8.38688625]
[1770171492779,48.682726,98.802,98.725,8.38688625]
[1770171492976,48.682726,98.802,98.727,7.73859584]
[1770171494481,48.682726,98.802,98.712,9.1305]
[1770171494482,48.682726,98.802,98.728,289.88]
[1770171495187,48.682726,98.799,98.728,297.09111678]
[1770171495388,48.682726,98.799,98.729,403.84]
[1770171495581,48.682726,98.799,98.73,403.84]
[1770171496082,48.682726,98.799,98.731,6.90503121]
[1770171498189,48.682726,98.797,98.711,6.19087175]
[1770171498386,48.682726,98.797,98.713,6.19087175]
[1770171499193,48.682726,98.795,98.713,6.19087175]
[1770171499590,48.682726,98.795,98.727,5.80103057]
[1770171500892,48.682726,98.795,98.728,4.27526138]
[1770171501088,48.682726,98.795,98.71,8.18976638]
[1770171501089,48.682726,98.795,98.73,4.27526138]
[1770171502298,48.682726,98.795,98.717,403.94]
[1770171502499,45.48839702,98.784,98.717,403.94]
[1770171503092,45.48753712,98.782,98.717,403.94]
[1770171504600,45.50356248,98.78,98.717,403.94]
[1770171505702,9.1245,98.778,98.717,403.94]
[1770171506000,45.63263482,98.777,98.717,403.94]
[1770171506398,45.63263482,98.777,98.708,403.98]
[1770171506894,45.63263482,98.777,98.709,1.69078461]
[1770171507495,9.125,98.773,98.709,1.69078461]
[1770171507697,45.63263482,98.777,98.709,1.69078461]
[1770171507901,45.63263482,98.777,98.711,1.35749849]
[1770171508097,45.63263482,98.777,98.718,1.35749849]
[1770171508400,45.63263482,98.777,98.72,1.35749849]
[1770171508791,45.82766307,98.794,98.725,1.35749849]
[1770171509197,45.82766307,98.794,98.727,0.74058328]
[1770171509398,45.82766307,98.794,98.728,369.28]
[1770171509799,45.99933057,98.781,98.728,369.28]
[1770171510300,45.99933057,98.781,98.716,0.41590722]
[1770171510702,45.99933057,98.781,98.717,0.41590722]
[1770171511197,45.99933057,98.781,98.718,404.02]
[1770171511803,45.99933057,98.781,98.719,9.1299]
[1770171512503,45.99933057,98.781,98.718,404.02]
[1770171513295,9.1245,98.779,98.718,404.02]
[1770171513596,46.22997643,98.778,98.718,404.02]
[1770171514203,46.22997643,98.778,98.718,413.15]
[1770171514603,46.22997643,98.778,98.718,404.02]
[1770171515097,46.56802337,98.795,98.718,404.02]
[1770171515505,46.56802337,98.795,98.721,9.1297]
[1770171516206,8.21110364,98.82,98.721,9.1297]
[1770171516207,46.57920316,98.793,98.721,9.1297]
[1770171517207,55.70240316,98.793,98.721,9.1297]
[1770171517403,46.57920316,98.793,98.729,9.129]
[1770171518308,55.70230316,98.793,98.729,9.129]
[1770171518606,55.70230316,98.793,98.72,9.1299]
[1770171519109,46.35766037,98.783,98.72,9.1299]
[1770171519311,46.35766037,98.783,98.727,9.1292]
[1770171520805,46.36909288,98.799,98.738,9.1281]
[1770171524615,46.36909288,98.799,98.732,404.04]
[1770171524812,46.33192711,98.789,98.707,404.04]
[1770171525714,46.33192711,98.779,98.708,9.1309]
[1770171526416,9.1247,98.777,98.707,404.04]
[1770171526618,46.34287345,98.776,98.707,404.04]
[1770171528220,46.64996678,98.763,98.707,404.04]
[1770171528520,46.64996678,98.763,98.662,12.49822247]
[1770171528521,43.81764521,98.742,98.67,43.31505016]
[1770171528814,43.81764521,98.729,98.655,43.31505016]
[1770171529321,43.81764521,98.723,98.655,43.31505016]
[1770171529817,52.94734521,98.723,98.655,43.31505016]
[1770171530721,43.81764521,98.723,98.655,43.31505016]
[1770171530916,43.81764521,98.723,98.656,43.07270057]
[1770171531418,41.22020301,98.74,98.661,43.07270057]
[1770171531620,41.22020301,98.74,98.663,43.07270057]
[1770171532015,150.19020364,98.75,98.663,43.07270057]
[1770171532016,41.22020301,98.738,98.663,43.07270057]
[1770171532318,41.22020301,98.738,98.662,404.1]
[1770171532319,41.22020301,98.738,98.665,43.07270057]
[1770171532815,41.22020301,98.762,98.665,43.07270057]
[1770171533023,41.22020301,98.762,98.684,43.07270057]
[1770171533320,41.22020301,98.75,98.684,43.07270057]
[1770171534120,41.22020301,98.75,98.687,43.07270057]
[1770171536222,41.22020301,98.75,98.689,42.33497925]
[1770171537126,42.6150293,98.773,98.691,42.33497925]
[1770171538219,42.6150293,98.773,98.703,42.33497925]
[1770171538824,42.6150293,98.773,98.705,42.33497925]
[1770171539225,42.6150293,98.773,98.707,42.33497925]
[1770171540722,42.6150293,98.766,98.692,51.46737925]
[1770171541227,42.6150293,98.761,98.696,42.33497925]
[1770171541823,42.6150293,98.761,98.692,404.16]
[1770171542825,42.6150293,98.779,98.693,42.33497925]
[1770171543228,42.6150293,98.779,98.712,42.33497925]
[1770171543821,42.6150293,98.779,98.717,42.33497925]
[1770171545030,42.6150293,98.809,98.728,42.33497925]
[1770171545228,42.6150293,98.809,98.73,42.33497925]
[1770171545428,42.6150293,98.826,98.738,42.33497925]
[1770171545628,42.6150293,98.826,98.723,142.0164]
[1770171545629,42.6150293,98.826,98.764,42.33497925]
[1770171545936,42.6150293,98.849,98.766,42.33497925]
[1770171546928,42.6150293,98.849,98.765,404.16]
[1770171546929,42.6150293,98.849,98.776,42.33497925]
[1770171547133,42.6150293,98.838,98.756,42.33497925]
[1770171547328,42.6150293,98.81,98.737,42.33497925]
[1770171547536,42.6150293,98.785,98.702,42.33497925]
[1770171548337,42.6150293,98.767,98.669,42.33497925]
[1770171548634,42.6150293,98.767,98.671,42.33497925]
[1770171549834,42.6150293,98.762,98.683,42.33497925]
[1770171550226,9.1263,98.759,98.685,42.33497925]
[1770171550432,42.6150293,98.758,98.685,42.33497925]
[1770171551334,42.6150293,98.758,98.687,42.33497925]
[1770171556844,42.6150293,98.758,98.686,404.12]
[1770171556845,42.6150293,98.758,98.693,42.33497925]
[1770171557844,42.6150293,98.756,98.693,42.33497925]
[1770171558744,42.6150293,98.752,98.693,42.33497925]
[1770171561153,51.7419293,98.752,98.693,42.33497925]
[1770171567053,36.62276909,98.742,98.684,404.18]
[1770171567455,141.9908,98.741,98.684,404.18]
[1770171567653,36.62276909,98.74,98.662,39.41052744]
[1770171567954,45.75336909,98.713,98.662,39.41052744]
[1770171568148,36.62276909,98.713,98.662,39.41052744]
[1770171568346,9.1289,98.731,98.664,9.135]
[1770171568558,36.62276909,98.73,98.665,39.41052744]
[1770171569561,36.62276909,98.739,98.667,39.41052744]
[1770171570256,36.62276909,98.736,98.667,39.41052744]
[1770171571053,36.62276909,98.734,98.669,39.41052744]
[1770171571249,36.62276909,98.734,98.666,404.2]
[1770171571454,36.62276909,98.729,98.666,404.2]
[1770171571858,36.62276909,98.72,98.654,39.41052744]
[1770171572062,36.62276909,98.72,98.656,39.41052744]
[1770171572362,36.62276909,98.749,98.658,39.41052744]
[1770171572563,36.62276909,98.733,98.674,39.41052744]
[1770171574962,9.1288,98.732,98.674,39.41052744]
[1770171575160,36.62276909,98.731,98.674,39.41052744]
[1770171579260,36.62276909,98.731,98.676,39.41052744]
[1770171582859,36.62276909,98.729,98.671,39.41052744]
[1770171583057,36.62276909,98.729,98.642,39.41052744]
[1770171583863,36.62276909,98.727,98.653,39.41052744]
[1770171584060,36.62276909,98.727,98.655,39.41052744]
[1770171584757,36.62276909,98.727,98.661,39.41052744]
[1770171585062,36.62276909,98.723,98.661,39.41052744]
[1770171585564,36.62276909,98.713,98.654,404.26]
[1770171585862,36.62276909,98.713,98.654,443.67052744]
[1770171586066,36.62276909,98.713,98.654,39.41052744]
[1770171586269,36.62276909,98.702,98.64,39.41052744]
[1770171588468,36.62276909,98.702,98.642,39.41052744]
[1770171589572,36.62276909,98.702,98.646,39.41052744]
[1770171590374,3.28950604,98.7,98.646,39.41052744]
[1770171590571,39.91227513,98.7,98.646,39.41052744]
[1770171591072,33.28302537,98.689,98.646,39.41052744]
[1770171591274,33.28302537,98.689,98.64,404.32]
[1770171593074,33.28302537,98.689,98.641,35.94340211]
[1770171601079,33.28302537,98.689,98.62,3.28950604]
[1770171601282,35.70376411,98.649,98.58,38.4941904]
[1770171601483,35.70376411,98.639,98.58,35.20468436]
[1770171601887,35.70376411,98.639,98.582,35.20468436]
[1770171602289,35.70376411,98.653,98.591,35.20468436]
[1770171602883,35.70376411,98.653,98.601,35.20468436]
[1770171603180,35.70376411,98.653,98.61,0.0641326]
[1770171604183,35.70376411,98.649,98.61,0.0641326]
[1770171604385,38.99327015,98.64,98.61,0.0641326]
[1770171604784,38.99327015,98.64,98.587,35.20468436]
[1770171605185,35.70376411,98.64,98.587,35.20468436]
[1770171605790,38.99327015,98.64,98.587,35.20468436]
[1770171606094,35.70376411,98.629,98.583,404.4]
[1770171606286,142.1047,98.662,98.583,404.4]
[1770171606287,35.70376411,98.619,98.583,404.4]
[1770171606492,35.70376411,98.609,98.553,35.20468436]
[1770171606687,9.1417,98.592,98.532,35.20468436]
[1770171606989,9.1417,98.592,98.502,2.77948636]
[1770171606990,35.70376411,98.589,98.511,35.20468436]
[1770171607188,35.70376411,98.578,98.502,2.77948636]
[1770171607387,35.70376411,98.57,98.502,2.77948636]
[1770171607792,35.70376411,98.57,98.503,35.20468436]
[1770171608193,35.70376411,98.57,98.505,35.20468436]
[1770171609291,35.70376411,98.57,98.504,404.54]
[1770171609493,35.70376411,98.559,98.502,2.77948636]
[1770171609692,35.70376411,98.549,98.466,35.20468436]
[1770171610295,35.70376411,98.543,98.466,35.20468436]
[1770171610896,35.70376411,98.543,98.468,35.20468436]
[1770171611797,35.70376411,98.537,98.468,35.20468436]
[1770171612498,35.70376411,98.535,98.468,35.20468436]
[1770171613296,35.70376411,98.535,98.457,35.20468436]
[1770171613601,35.70376411,98.535,98.459,35.20468436]
[1770171614101,35.70376411,98.535,98.468,35.20468436]
[1770171615393,35.70376411,98.535,98.458,404.72]
[1770171615394,35.70376411,98.535,98.47,35.20468436]
[1770171616004,35.70376411,98.535,98.458,404.72]
[1770171616005,35.70376411,98.533,98.455,35.20468436]
[1770171616204,35.70376411,98.531,98.455,35.20468436]
[1770171616405,35.70376411,98.528,98.455,35.20468436]
[1770171616605,35.70376411,98.523,98.455,35.20468436]
[1770171619505,35.70376411,98.523,98.457,35.20468436]
[1770171620909,35.70376411,98.523,98.463,32.95582082]
[1770171622318,35.70376411,98.523,98.48,0.06429962]
[1770171622807,9.147,98.535,98.481,32.95582082]
[1770171623011,31.30922199,98.542,98.481,32.95582082]
[1770171623209,31.30922199,98.559,98.481,32.95582082]
[1770171623413,31.30922199,98.559,98.483,32.95582082]
[1770171623610,31.30922199,98.557,98.483,32.95582082]
[1770171625013,31.30922199,98.557,98.51,0.06398731]
[1770171625211,9.1451,98.556,98.51,0.06398731]
[1770171625412,31.30922199,98.539,98.441,32.95582082]
[1770171625610,31.30922199,98.539,98.442,32.95582082]
[1770171626714,31.30922199,98.533,98.454,32.95582082]
[1770171627714,31.30922199,98.531,98.454,32.95582082]
[1770171628410,31.30922199,98.531,98.456,32.95582082]
[1770171629114,31.30922199,98.531,98.462,32.95582082]
[1770171629316,31.30922199,98.531,98.45,142.4102]
[1770171629317,31.30922199,98.531,98.464,32.95582082]
[1770171629912,31.30922199,98.531,98.474,9.1526]
[1770171630113,31.30922199,98.531,98.475,32.95582082]
[1770171630819,31.30922199,98.531,98.477,32.95582082]
[1770171631717,9.146,98.546,98.477,32.95582082]
[1770171632119,31.30922199,98.545,98.477,32.95582082]
[1770171632717,31.30922199,98.545,98.479,32.95582082]
[1770171633115,31.30922199,98.56,98.481,32.95582082]
[1770171633810,31.30922199,98.558,98.484,32.95582082]
[1770171635821,31.30922199,98.555,98.484,32.95582082]
[1770171636010,31.30922199,98.552,98.484,32.95582082]
[1770171636423,31.30922199,98.534,98.478,405.04]
[1770171637823,31.30922199,98.559,98.479,32.95582082]
[1770171638716,31.30922199,98.542,98.479,32.95582082]
[1770171639624,31.30922199,98.538,98.479,32.95582082]
[1770171646415,31.30922199,98.536,98.479,32.95582082]
[1770171647122,31.30922199,98.519,98.475,405.06]
[1770171647322,31.30922199,98.519,98.466,405.06]
[1770171647717,31.30922199,98.519,98.45,32.95582082]
[1770171648127,31.30922199,98.5,98.45,32.95582082]
[1770171649031,0.06501083,98.48,98.45,32.95582082]
[1770171650232,0.06501083,98.48,98.44,3.30288873]
[1770171650431,0.06501083,98.48,98.441,32.95582082]
[1770171653037,32.13437348,98.487,98.441,32.95582082]
[1770171653532,3.30288873,98.48,98.436,405.1]
[1770171653738,32.13437348,98.487,98.43,35.65344094]
[1770171653945,0.06432238,98.48,98.43,35.65344094]
[1770171654139,0.06432238,98.48,98.441,32.35055221]
[1770171654529,32.13437348,98.499,98.441,32.35055221]
[1770171654732,32.13437348,98.499,98.451,32.35055221]
[1770171656441,9.149,98.514,98.451,32.35055221]
[1770171656636,30.51242149,98.509,98.451,32.35055221]
[1770171656843,30.51242149,98.509,98.449,405.14]
[1770171657142,30.51242149,98.509,98.433,29.77546278]
[1770171657439,0.0650047,98.48,98.433,29.77546278]
[1770171658137,30.51242149,98.482,98.433,29.77546278]
[1770171660538,30.51242149,98.478,98.433,29.77546278]
[1770171660739,30.51242149,98.478,98.417,434.93546278]
[1770171660940,30.51242149,98.478,98.418,29.77546278]
[1770171661338,30.51242149,98.476,98.418,29.77546278]
[1770171662839,30.51242149,98.476,98.419,29.77546278]
[1770171663337,0.06462608,98.46,98.419,29.77546278]
[1770171663844,0.06462608,98.46,98.421,29.77546278]
[1770171664035,30.51242149,98.49,98.421,29.77546278]
[1770171664241,30.51242149,98.504,98.431,9.1566]
[1770171664443,30.51242149,98.504,98.433,29.77546278]
[1770171664738,30.51242149,98.501,98.433,29.77546278]
[1770171665038,30.51242149,98.501,98.435,29.77546278]
[1770171665238,30.51242149,98.501,98.436,405.22]
[1770171665439,30.51242149,98.501,98.438,29.77546278]
[1770171665639,30.51242149,98.501,98.439,29.77546278]
[1770171665835,30.51242149,98.501,98.46,0.06412941]
[1770171666641,30.51242149,98.52,98.461,29.77546278]
[1770171666941,30.51242149,98.518,98.461,29.77546278]
[1770171668442,30.51242149,98.516,98.461,29.77546278]
[1770171668638,30.51242149,98.516,98.447,38.93066278]
[1770171668840,30.51242149,98.516,98.448,29.77546278]
[1770171669034,30.51242149,98.503,98.432,376.21546278]
[1770171669237,30.51242149,98.501,98.432,29.77546278]
[1770171669440,30.51242149,98.501,98.41,29.77546278]
[1770171669637,30.51242149,98.476,98.41,29.77546278]
[1770171670845,30.51242149,98.476,98.413,29.77546278]
[1770171671246,30.51242149,98.476,98.43,0.06399836]
[1770171671941,30.51242149,98.476,98.413,29.77546278]
[1770171671942,30.51242149,98.469,98.413,29.77546278]
[1770171672241,30.51242149,98.469,98.399,380.62]
[1770171672447,30.51242149,98.459,98.4,29.77546278]
[1770171672847,30.51242149,98.475,98.4,29.77546278]
[1770171673046,142.2953,98.53,98.424,29.77546278]
[1770171673047,30.51242149,98.491,98.424,29.77546278]
[1770171673844,30.51242149,98.491,98.428,29.77546278]
[1770171674444,30.51242149,98.491,98.436,29.77546278]
[1770171675151,30.51242149,98.491,98.439,29.77546278]
[1770171676750,30.51242149,98.491,98.44,9.1558]
[1770171676956,30.51242149,98.491,98.441,29.77546278]
[1770171677748,9.15,98.503,98.441,29.77546278]
[1770171678345,39.66242149,98.503,98.441,29.77546278]
[1770171679150,30.51242149,98.502,98.441,29.77546278]
[1770171679550,30.51242149,98.502,98.443,29.77546278]
[1770171681153,30.60963898,98.499,98.443,29.77546278]
[1770171682856,30.60963898,98.498,98.443,29.77546278]
[1770171683959,30.60963898,98.509,98.451,29.11591816]
[1770171684156,30.60963898,98.499,98.437,29.11591816]
[1770171685652,30.60963898,98.498,98.437,29.11591816]
[1770171686259,3.30248057,98.49,98.437,29.11591816]
[1770171688154,30.60963898,98.496,98.437,29.11591816]
[1770171689254,0.06402534,98.48,98.437,29.11591816]
[1770171689762,30.60963898,98.469,98.429,405.22]
[1770171689957,3.30248057,98.45,98.405,29.11591816]
[1770171690452,3.30616124,98.45,98.405,29.11591816]
[1770171691650,30.60963898,98.459,98.411,29.11591816]
[1770171691856,30.60963898,98.474,98.421,29.11591816]
[1770171693051,3.30616124,98.47,98.421,29.11591816]
[1770171693759,30.60963898,98.474,98.421,29.11591816]
[1770171694755,30.60963898,98.474,98.422,29.11591816]
[1770171694956,30.60963898,98.474,98.43,32.4220794]
[1770171695154,30.60963898,98.488,98.43,32.4220794]
[1770171695959,30.60963898,98.479,98.43,29.11591816]
[1770171696659,33.91580022,98.47,98.42,405.26]
[1770171696860,30.60963898,98.47,98.42,405.26]
[1770171697463,30.60963898,98.47,98.416,29.11591816]
[1770171697758,30.60963898,98.47,98.418,29.11591816]
[1770171698972,30.60963898,98.47,98.417,9.1579]
[1770171698973,30.60963898,98.47,98.421,29.11591816]
[1770171699670,30.60963898,98.487,98.421,29.11591816]
[1770171700270,30.60963898,98.487,98.431,29.11591816]
[1770171702475,30.60963898,98.487,98.44,3.30616124]
[1770171702777,30.60963898,98.487,98.441,29.11591816]
[1770171703974,30.60963898,98.505,98.451,29.11591816]
[1770171705980,30.60963898,98.497,98.451,29.11591816]
[1770171706482,9.1508,98.495,98.451,29.11591816]
[1770171706783,9.1508,98.495,98.443,405.28]
[1770171706784,3.30616124,98.49,98.443,405.28]
[1770171706979,30.60963898,98.489,98.443,405.28]
[1770171707884,30.60963898,98.505,98.451,29.11591816]
[1770171708373,30.60963898,98.505,98.45,3.30616124]
[1770171708374,30.60963898,98.524,98.461,29.11591816]
[1770171708577,30.60963898,98.524,98.44,142.4248]
[1770171708578,30.60963898,98.524,98.47,32.4220794]
[1770171711282,30.60963898,98.524,98.473,30.05635962]
[1770171711779,30.38475672,98.54,98.486,30.05635962]
[1770171711983,30.38475672,98.54,98.49,3.30616124]
[1770171712477,30.38475672,98.558,98.501,30.05635962]
[1770171713184,30.38475672,98.549,98.501,30.05635962]
[1770171713881,30.38475672,98.565,98.501,30.05635962]
[1770171714076,33.69091796,98.56,98.501,30.05635962]
[1770171716174,33.69091796,98.56,98.472,142.3772]
[1770171716175,28.12479968,98.579,98.521,27.98919631]
[1770171716383,3.30616124,98.57,98.521,27.98919631]
[1770171716577,31.43096092,98.57,98.521,27.98919631]
[1770171717384,28.12479968,98.57,98.521,27.98919631]
[1770171718781,31.43096092,98.57,98.502,433.14919631]
[1770171718986,142.2153,98.586,98.502,433.14919631]
[1770171718987,31.43096092,98.56,98.503,27.98919631]
[1770171719486,28.12479968,98.549,98.502,405.16]
[1770171721789,28.12479968,98.606,98.507,142.3274]
[1770171722089,28.12479968,98.599,98.54,3.30616124]
[1770171723189,0.0640213,98.58,98.54,3.30616124]
[1770171723385,28.12479968,98.615,98.56,3.30616124]
[1770171723590,28.12479968,98.615,98.57,3.30616124]
[1770171723790,28.12479968,98.615,98.561,27.98919631]
[1770171724090,28.12479968,98.609,98.561,27.98919631]
[1770171724990,28.12479968,98.644,98.562,27.98919631]
[1770171725294,28.12479968,98.644,98.563,27.98919631]
[1770171726194,28.12479968,98.628,98.563,27.98919631]
[1770171726686,28.12479968,98.626,98.563,27.98919631]
[1770171727088,28.12479968,98.626,98.547,27.98919631]
[1770171728291,28.12479968,98.622,98.551,27.98919631]
[1770171729185,28.12479968,98.622,98.555,27.98919631]
[1770171729387,142.0786,98.68,98.567,27.98919631]